[Event "Titled Tuesday Blitz September 13 Late 2022"]
[White "Gheorghiu, Calin"]
[Black "Martinez Ramirez, Lennis"]
[WhiteFideId "1200305"]
[BlackFideId "3509079"]
[WhiteElo "2168"]
[BlackElo "2374"]
[Result "0-1"]
[Round "10"]
[TimeControl "180+1"]
[Date "2022.09.13"]
[WhiteClock "0:00:01"]
[BlackClock "0:00:22"]

1. d4 {[%clk 0:02:58]}  Nf6 {[%clk 0:02:59]} 2. Bf4 {[%clk 0:02:56]}  g6 {[%clk 0:02:57]} 3. Nf3 {[%clk 0:02:55]}  Bg7 {[%clk 0:02:58]} 4. c3 {[%clk 0:02:56]}  d6 {[%clk 0:02:58]} 5. Nbd2 {[%clk 0:02:56]}  O-O {[%clk 0:02:59]} 6. e4 {[%clk 0:02:52]}  Nh5 {[%clk 0:02:53]} 7. Bg5 {[%clk 0:02:45]}  h6 {[%clk 0:02:52]} 8. Bh4 {[%clk 0:02:46]}  g5 {[%clk 0:02:52]} 9. Bg3 {[%clk 0:02:32]}  e6 {[%clk 0:02:52]} 10. h4 {[%clk 0:01:50]}  g4 {[%clk 0:02:44]} 11. Ng1 {[%clk 0:01:40]}  f5 {[%clk 0:02:44]} 12. Bc4 {[%clk 0:01:34]}  f4 {[%clk 0:02:39]} 13. Bh2 {[%clk 0:01:22]}  Qxh4 {[%clk 0:02:35]} 14. Qb3 {[%clk 0:01:13]}  Re8 {[%clk 0:02:02]} 15. O-O-O {[%clk 0:01:08]}  Qxf2 {[%clk 0:01:59]} 16. Ne2 {[%clk 0:01:02]}  g3 {[%clk 0:00:59]} 17. Bg1 {[%clk 0:01:01]}  Qxg2 {[%clk 0:01:00]} 18. Rxh5 {[%clk 0:01:00]}  Rf8 {[%clk 0:00:42]} 19. Bxe6+ {[%clk 0:00:41]}  Bxe6 {[%clk 0:00:43]} 20. Qxe6+ {[%clk 0:00:41]}  Kh7 {[%clk 0:00:43]} 21. Qh3 {[%clk 0:00:26]}  Qxe2 {[%clk 0:00:41]} 22. d5 {[%clk 0:00:20]}  Nd7 {[%clk 0:00:35]} 23. Bd4 {[%clk 0:00:16]}  Ne5 {[%clk 0:00:35]} 24. Rh1 {[%clk 0:00:15]}  Rf6 {[%clk 0:00:32]} 25. Bxe5 {[%clk 0:00:10]}  dxe5 {[%clk 0:00:31]} 26. Rf5 {[%clk 0:00:10]}  Raf8 {[%clk 0:00:28]} 27. Rxe5 {[%clk 0:00:07]}  g2 {[%clk 0:00:28]} 28. Rg1 {[%clk 0:00:06]}  f3 {[%clk 0:00:28]} 29. Rf5 {[%clk 0:00:01]}  Rxf5 {[%clk 0:00:24]} 30. exf5 {[%clk 0:00:01]}  Qe3 {[%clk 0:00:24]} 31. Qh2 {[%clk 0:00:01]}  Rxf5 {[%clk 0:00:22]} 0-1


[Site "https://www.chess.com"]

[Event "Titled Tuesday Blitz September 13 Late 2022"]
[White "Goncalves, Davi Sulzbacher"]
[Black "Ghasi, Ameet K"]
[WhiteFideId "2154510"]
[BlackFideId "409200"]
[WhiteElo "2107"]
[BlackElo "2587"]
[Result "0-1"]
[Round "10"]
[TimeControl "180+1"]
[Date "2022.09.13"]
[WhiteClock "0:00:14"]
[BlackClock "0:00:18"]

1. d4 {[%clk 0:03:00]}  g6 {[%clk 0:03:00]} 2. c4 {[%clk 0:03:01]}  d6 {[%clk 0:03:01]} 3. Nc3 {[%clk 0:03:01]}  Bg7 {[%clk 0:03:01]} 4. e4 {[%clk 0:03:02]}  Nf6 {[%clk 0:03:02]} 5. f3 {[%clk 0:03:02]}  O-O {[%clk 0:03:02]} 6. Be3 {[%clk 0:03:02]}  Nc6 {[%clk 0:03:01]} 7. Bd3 {[%clk 0:03:00]}  a6 {[%clk 0:03:02]} 8. Nge2 {[%clk 0:03:00]}  Rb8 {[%clk 0:03:02]} 9. O-O {[%clk 0:03:00]}  e5 {[%clk 0:02:57]} 10. d5 {[%clk 0:02:59]}  Ne7 {[%clk 0:02:58]} 11. c5 {[%clk 0:02:58]}  dxc5 {[%clk 0:02:52]} 12. Bxc5 {[%clk 0:02:57]}  Ne8 {[%clk 0:02:53]} 13. Qb3 {[%clk 0:02:51]}  Bd7 {[%clk 0:02:43]} 14. Qa3 {[%clk 0:02:45]}  Nd6 {[%clk 0:02:41]} 15. Bxd6 {[%clk 0:02:44]}  cxd6 {[%clk 0:02:42]} 16. Qxd6 {[%clk 0:02:44]}  Re8 {[%clk 0:02:42]} 17. Rac1 {[%clk 0:02:41]}  Bf8 {[%clk 0:02:33]} 18. Qxe5 {[%clk 0:02:37]}  Nf5 {[%clk 0:02:31]} 19. Qf4 {[%clk 0:02:29]}  Bh6 {[%clk 0:01:55]} 20. Qg4 {[%clk 0:02:26]}  Ne3 {[%clk 0:01:55]} 21. Qg3 {[%clk 0:02:20]}  Nxf1 {[%clk 0:01:55]} 22. Rxf1 {[%clk 0:02:20]}  Qb6+ {[%clk 0:01:56]} 23. Kh1 {[%clk 0:02:16]}  Qxb2 {[%clk 0:01:56]} 24. e5 {[%clk 0:02:08]}  Bb5 {[%clk 0:01:45]} 25. Nxb5 {[%clk 0:01:48]}  axb5 {[%clk 0:01:44]} 26. f4 {[%clk 0:01:49]}  Bg7 {[%clk 0:01:33]} 27. h4 {[%clk 0:01:43]}  Qxa2 {[%clk 0:01:23]} 28. Bxb5 {[%clk 0:01:35]}  Qxd5 {[%clk 0:01:16]} 29. Bxe8 {[%clk 0:01:33]}  Rxe8 {[%clk 0:01:16]} 30. Qf3 {[%clk 0:01:27]}  Qc4 {[%clk 0:01:14]} 31. Rc1 {[%clk 0:01:24]}  Qb4 {[%clk 0:01:09]} 32. Qc3 {[%clk 0:01:17]}  Qe4 {[%clk 0:01:07]} 33. Qf3 {[%clk 0:01:09]}  Qb4 {[%clk 0:00:55]} 34. Rc7 {[%clk 0:01:03]}  Qe1+ {[%clk 0:00:54]} 35. Ng1 {[%clk 0:00:45]}  Qxh4+ {[%clk 0:00:53]} 36. Nh3 {[%clk 0:00:45]}  b5 {[%clk 0:00:23]} 37. Qd5 {[%clk 0:00:35]}  Rf8 {[%clk 0:00:20]} 38. Qxb5 {[%clk 0:00:33]}  h6 {[%clk 0:00:18]} 39. Qd7 {[%clk 0:00:24]}  g5 {[%clk 0:00:17]} 40. e6 {[%clk 0:00:13]}  Qe1+ {[%clk 0:00:16]} 41. Kh2 {[%clk 0:00:13]}  Qxe6 {[%clk 0:00:17]} 42. Qxe6 {[%clk 0:00:13]}  fxe6 {[%clk 0:00:17]} 43. fxg5 {[%clk 0:00:14]}  Be5+ {[%clk 0:00:18]} 44. Kg1 {[%clk 0:00:13]}  Bxc7 {[%clk 0:00:19]} 45. gxh6 {[%clk 0:00:13]}  Bd8 {[%clk 0:00:18]} 46. g4 {[%clk 0:00:12]}  Kh7 {[%clk 0:00:17]} 47. g5 {[%clk 0:00:12]}  Kg6 {[%clk 0:00:18]} 48. Kg2 {[%clk 0:00:12]}  Bxg5 {[%clk 0:00:17]} 49. h7 {[%clk 0:00:13]}  Bh6 {[%clk 0:00:16]} 50. Kg3 {[%clk 0:00:12]}  Kxh7 {[%clk 0:00:16]} 51. Kg4 {[%clk 0:00:13]}  Kg6 {[%clk 0:00:16]} 52. Kg3 {[%clk 0:00:14]}  e5 {[%clk 0:00:17]} 53. Kg4 {[%clk 0:00:14]}  e4 {[%clk 0:00:17]} 54. Kg3 {[%clk 0:00:14]}  e3 {[%clk 0:00:18]} 55. Kg2 {[%clk 0:00:14]}  e2 {[%clk 0:00:18]} 0-1


[Site "https://www.chess.com"]

[Event "Titled Tuesday Blitz September 13 Late 2022"]
[White "Hansen, Eric"]
[Black "Korchmar, Vasiliy"]
[WhiteFideId "2606771"]
[BlackFideId "24131750"]
[WhiteElo "2568"]
[BlackElo "2370"]
[Result "1-0"]
[Round "10"]
[TimeControl "180+1"]
[Date "2022.09.13"]
[WhiteClock "0:00:04"]
[BlackClock "0:00:04"]

1. e4 {[%clk 0:03:00]}  c5 {[%clk 0:03:00]} 2. Nf3 {[%clk 0:03:01]}  d6 {[%clk 0:03:00]} 3. Bb5+ {[%clk 0:03:00]}  Nd7 {[%clk 0:03:01]} 4. c3 {[%clk 0:03:00]}  Nf6 {[%clk 0:03:01]} 5. Qe2 {[%clk 0:03:00]}  a6 {[%clk 0:03:01]} 6. Ba4 {[%clk 0:03:01]}  b5 {[%clk 0:02:58]} 7. Bc2 {[%clk 0:03:01]}  Bb7 {[%clk 0:02:59]} 8. O-O {[%clk 0:03:02]}  e6 {[%clk 0:02:59]} 9. d4 {[%clk 0:03:02]}  Be7 {[%clk 0:02:58]} 10. Re1 {[%clk 0:03:02]}  O-O {[%clk 0:02:57]} 11. Nbd2 {[%clk 0:03:02]}  Qc7 {[%clk 0:02:52]} 12. Nf1 {[%clk 0:03:01]}  cxd4 {[%clk 0:02:50]} 13. cxd4 {[%clk 0:03:02]}  Rfc8 {[%clk 0:02:51]} 14. Bd3 {[%clk 0:02:58]}  b4 {[%clk 0:02:51]} 15. Ng3 {[%clk 0:02:54]}  a5 {[%clk 0:02:49]} 16. Bd2 {[%clk 0:02:43]}  h6 {[%clk 0:02:49]} 17. a3 {[%clk 0:02:41]}  Qb6 {[%clk 0:02:35]} 18. axb4 {[%clk 0:02:40]}  axb4 {[%clk 0:02:36]} 19. Bb5 {[%clk 0:02:38]}  Rxa1 {[%clk 0:02:27]} 20. Rxa1 {[%clk 0:02:36]}  Rc2 {[%clk 0:02:18]} 21. Qd3 {[%clk 0:02:34]}  Rxb2 {[%clk 0:01:37]} 22. Bc1 {[%clk 0:02:31]}  Rb3 {[%clk 0:01:32]} 23. Qxb3 {[%clk 0:02:15]}  Qxb5 {[%clk 0:01:32]} 24. Nd2 {[%clk 0:02:02]}  d5 {[%clk 0:01:20]} 25. e5 {[%clk 0:01:47]}  Ne4 {[%clk 0:01:20]} 26. Ngxe4 {[%clk 0:01:37]}  dxe4 {[%clk 0:01:21]} 27. Qc4 {[%clk 0:01:37]}  Qb6 {[%clk 0:01:11]} 28. Bb2 {[%clk 0:01:37]}  Bd5 {[%clk 0:00:48]} 29. Qc8+ {[%clk 0:01:37]}  Nf8 {[%clk 0:00:49]} 30. Nf1 {[%clk 0:01:33]}  Qb5 {[%clk 0:00:28]} 31. Ra7 {[%clk 0:01:21]}  Bg5 {[%clk 0:00:20]} 32. Qc7 {[%clk 0:01:14]}  Qe8 {[%clk 0:00:07]} 33. Bc1 {[%clk 0:01:08]}  Bxc1 {[%clk 0:00:04]} 34. Qxc1 {[%clk 0:01:09]}  Ng6 {[%clk 0:00:03]} 35. g3 {[%clk 0:00:55]}  b3 {[%clk 0:00:03]} 36. Qb2 {[%clk 0:00:16]}  Qb5 {[%clk 0:00:03]} 37. Ne3 {[%clk 0:00:16]}  h5 {[%clk 0:00:02]} 38. h4 {[%clk 0:00:16]}  Nf8 {[%clk 0:00:01]} 39. Rc7 {[%clk 0:00:15]}  Qb4 {[%clk 0:00:01]} 40. Rc8 {[%clk 0:00:08]}  g6 {[%clk 0:00:01]} 41. Rc5 {[%clk 0:00:04]}  Kg7 {[%clk 0:00:01]} 42. Kg2 {[%clk 0:00:03]}  Kg8 {[%clk 0:00:01]} 43. g4 {[%clk 0:00:02]}  hxg4 {[%clk 0:00:01]} 44. Nxg4 {[%clk 0:00:03]}  e3+ {[%clk 0:00:01]} 45. f3 {[%clk 0:00:02]}  Qd2+ {[%clk 0:00:01]} 46. Qxd2 {[%clk 0:00:02]}  exd2 {[%clk 0:00:02]} 47. Ne3 {[%clk 0:00:02]}  Nd7 {[%clk 0:00:01]} 48. Rb5 {[%clk 0:00:03]}  Nf8 {[%clk 0:00:01]} 49. Kf2 {[%clk 0:00:03]}  g5 {[%clk 0:00:01]} 50. hxg5 {[%clk 0:00:03]}  Ng6 {[%clk 0:00:02]} 51. Ke2 {[%clk 0:00:03]}  Nh4 {[%clk 0:00:03]} 52. Kxd2 {[%clk 0:00:03]}  Nxf3+ {[%clk 0:00:03]} 53. Kc3 {[%clk 0:00:04]}  Nxg5 {[%clk 0:00:03]} 54. Nxd5 {[%clk 0:00:04]}  exd5 {[%clk 0:00:03]} 55. Rxd5 {[%clk 0:00:04]}  Ne6 {[%clk 0:00:03]} 56. Kxb3 {[%clk 0:00:04]}  Kg7 {[%clk 0:00:04]} 57. Kc4 {[%clk 0:00:04]}  Kg6 {[%clk 0:00:04]} 58. Rd7 {[%clk 0:00:04]}  f6 {[%clk 0:00:04]} 59. Rd6 {[%clk 0:00:04]}  Kf5 {[%clk 0:00:04]} 60. d5 {[%clk 0:00:04]} 1-0


[Site "https://www.chess.com"]

[Event "Titled Tuesday Blitz September 13 Late 2022"]
[White "Leitao, Rafael"]
[Black "Putnam, Liam"]
[WhiteFideId "2101246"]
[BlackFideId "30938279"]
[WhiteElo "2609"]
[BlackElo "2031"]
[Result "1/2-1/2"]
[Round "10"]
[TimeControl "180+1"]
[Date "2022.09.13"]
[WhiteClock "0:00:15"]
[BlackClock "0:01:02"]

1. c4 {[%clk 0:02:57]}  e5 {[%clk 0:02:54]} 2. Nc3 {[%clk 0:02:56]}  Nc6 {[%clk 0:02:54]} 3. Nf3 {[%clk 0:02:52]}  f6 {[%clk 0:02:50]} 4. d4 {[%clk 0:02:46]}  exd4 {[%clk 0:02:47]} 5. Nxd4 {[%clk 0:02:45]}  Bb4 {[%clk 0:02:48]} 6. e4 {[%clk 0:02:22]}  Bxc3+ {[%clk 0:02:44]} 7. bxc3 {[%clk 0:02:22]}  d6 {[%clk 0:02:44]} 8. Qh5+ {[%clk 0:01:58]}  g6 {[%clk 0:02:43]} 9. Qh4 {[%clk 0:01:57]}  Qe7 {[%clk 0:02:37]} 10. Be2 {[%clk 0:01:56]}  f5 {[%clk 0:02:35]} 11. Qxe7+ {[%clk 0:01:28]}  Ngxe7 {[%clk 0:02:36]} 12. Nb5 {[%clk 0:01:28]}  Kd8 {[%clk 0:02:31]} 13. c5 {[%clk 0:01:28]}  a6 {[%clk 0:02:22]} 14. cxd6 {[%clk 0:01:28]}  axb5 {[%clk 0:02:22]} 15. dxe7+ {[%clk 0:01:28]}  Kxe7 {[%clk 0:02:10]} 16. exf5 {[%clk 0:01:26]}  Bxf5 {[%clk 0:02:08]} 17. Bxb5 {[%clk 0:01:26]}  Ra5 {[%clk 0:02:06]} 18. a4 {[%clk 0:01:26]}  Rha8 {[%clk 0:02:02]} 19. O-O {[%clk 0:01:20]}  Kf7 {[%clk 0:01:55]} 20. c4 {[%clk 0:01:17]}  Nd4 {[%clk 0:01:42]} 21. Bd2 {[%clk 0:01:14]}  R5a7 {[%clk 0:01:41]} 22. Be3 {[%clk 0:00:32]}  Nxb5 {[%clk 0:01:40]} 23. cxb5 {[%clk 0:00:32]}  Rxa4 {[%clk 0:01:40]} 24. Rxa4 {[%clk 0:00:28]}  Rxa4 {[%clk 0:01:41]} 25. Rc1 {[%clk 0:00:28]}  c6 {[%clk 0:01:22]} 26. bxc6 {[%clk 0:00:27]}  bxc6 {[%clk 0:01:23]} 27. Rxc6 {[%clk 0:00:27]}  Ra1+ {[%clk 0:01:23]} 28. Bc1 {[%clk 0:00:23]}  Be4 {[%clk 0:01:23]} 29. Rc3 {[%clk 0:00:23]}  Ke6 {[%clk 0:01:19]} 30. f3 {[%clk 0:00:23]}  Bd5 {[%clk 0:01:18]} 31. Kf2 {[%clk 0:00:23]}  Kf5 {[%clk 0:01:15]} 32. h4 {[%clk 0:00:23]}  Ra4 {[%clk 0:01:09]} 33. g4+ {[%clk 0:00:22]}  Ke6 {[%clk 0:01:07]} 34. Kg3 {[%clk 0:00:22]}  Rc4 {[%clk 0:01:07]} 35. Re3+ {[%clk 0:00:22]}  Kf7 {[%clk 0:01:07]} 36. Bb2 {[%clk 0:00:21]}  Rb4 {[%clk 0:01:05]} 37. Be5 {[%clk 0:00:21]}  Rb3 {[%clk 0:01:05]} 38. Bc3 {[%clk 0:00:18]}  Be6 {[%clk 0:01:04]} 39. Kf4 {[%clk 0:00:17]}  h6 {[%clk 0:01:04]} 40. h5 {[%clk 0:00:16]}  g5+ {[%clk 0:01:01]} 41. Kg3 {[%clk 0:00:16]}  Ra3 {[%clk 0:00:59]} 42. Bd4 {[%clk 0:00:13]}  Rxe3 {[%clk 0:00:59]} 43. Bxe3 {[%clk 0:00:14]}  Bd7 {[%clk 0:00:58]} 44. f4 {[%clk 0:00:14]}  gxf4+ {[%clk 0:00:59]} 45. Bxf4 {[%clk 0:00:14]}  Kg7 {[%clk 0:01:00]} 46. g5 {[%clk 0:00:14]}  hxg5 {[%clk 0:01:00]} 47. Bxg5 {[%clk 0:00:15]}  Kh7 {[%clk 0:01:01]} 48. h6 {[%clk 0:00:15]}  Kg6 {[%clk 0:01:02]} 49. h7 {[%clk 0:00:15]}  Kxh7 {[%clk 0:01:02]} 1/2-1/2


[Site "https://www.chess.com"]

[Event "Titled Tuesday Blitz September 13 Late 2022"]
[White "Melian, Juan Sebastian"]
[Black "Barria Zuniga, Daniel"]
[WhiteFideId "3706575"]
[BlackFideId "3400816"]
[WhiteElo "1851"]
[BlackElo "2414"]
[Result "0-1"]
[Round "10"]
[TimeControl "180+1"]
[Date "2022.09.13"]
[WhiteClock "0:01:07"]
[BlackClock "0:01:34"]

1. d4 {[%clk 0:03:00]}  g6 {[%clk 0:02:57]} 2. e4 {[%clk 0:02:57]}  Bg7 {[%clk 0:02:57]} 3. Nf3 {[%clk 0:02:57]}  c5 {[%clk 0:02:57]} 4. c3 {[%clk 0:02:55]}  cxd4 {[%clk 0:02:57]} 5. cxd4 {[%clk 0:02:55]}  d5 {[%clk 0:02:57]} 6. exd5 {[%clk 0:02:54]}  Nf6 {[%clk 0:02:56]} 7. Nc3 {[%clk 0:02:54]}  Nxd5 {[%clk 0:02:56]} 8. Qb3 {[%clk 0:02:51]}  Nxc3 {[%clk 0:02:47]} 9. bxc3 {[%clk 0:02:52]}  O-O {[%clk 0:02:47]} 10. Be2 {[%clk 0:02:50]}  Nc6 {[%clk 0:02:47]} 11. O-O {[%clk 0:02:50]}  b6 {[%clk 0:02:47]} 12. Rd1 {[%clk 0:02:49]}  Bb7 {[%clk 0:02:46]} 13. Ba3 {[%clk 0:02:39]}  Rc8 {[%clk 0:02:39]} 14. Qa4 {[%clk 0:02:34]}  a6 {[%clk 0:02:23]} 15. Nd2 {[%clk 0:01:44]}  b5 {[%clk 0:02:21]} 16. Qb3 {[%clk 0:01:41]}  Re8 {[%clk 0:02:12]} 17. Bc5 {[%clk 0:01:33]}  e5 {[%clk 0:01:49]} 18. Ne4 {[%clk 0:01:22]}  Na5 {[%clk 0:01:36]} 19. Qb1 {[%clk 0:01:08]}  Bxe4 {[%clk 0:01:34]} 20. Qxe4 {[%clk 0:01:07]}  exd4 {[%clk 0:01:34]} 0-1


[Site "https://www.chess.com"]

[Event "Titled Tuesday Blitz September 13 Late 2022"]
[White "Mikhailov, Viacheslav"]
[Black "Zhigalko, Sergei"]
[WhiteFideId "4187369"]
[BlackFideId "13502956"]
[WhiteElo "2381"]
[BlackElo "2662"]
[Result "0-1"]
[Round "10"]
[TimeControl "180+1"]
[Date "2022.09.13"]
[WhiteClock "0:00:03"]
[BlackClock "0:00:12"]

1. Nf3 {[%clk 0:02:59]}  d5 {[%clk 0:03:00]} 2. g3 {[%clk 0:03:00]}  c6 {[%clk 0:02:59]} 3. Bg2 {[%clk 0:03:00]}  Bg4 {[%clk 0:03:00]} 4. O-O {[%clk 0:03:01]}  Nd7 {[%clk 0:03:00]} 5. d4 {[%clk 0:03:01]}  Ngf6 {[%clk 0:03:00]} 6. c4 {[%clk 0:03:02]}  e6 {[%clk 0:03:01]} 7. Nc3 {[%clk 0:03:02]}  Be7 {[%clk 0:03:00]} 8. h3 {[%clk 0:03:02]}  Bh5 {[%clk 0:02:55]} 9. g4 {[%clk 0:03:02]}  Bg6 {[%clk 0:02:55]} 10. Bf4 {[%clk 0:03:03]}  O-O {[%clk 0:02:49]} 11. Qb3 {[%clk 0:03:03]}  Qb6 {[%clk 0:02:47]} 12. c5 {[%clk 0:03:03]}  Qa6 {[%clk 0:02:47]} 13. Rfe1 {[%clk 0:03:03]}  b6 {[%clk 0:02:47]} 14. cxb6 {[%clk 0:03:02]}  axb6 {[%clk 0:02:48]} 15. Ne5 {[%clk 0:02:59]}  Nxe5 {[%clk 0:02:44]} 16. Bxe5 {[%clk 0:03:00]}  Nd7 {[%clk 0:02:32]} 17. Bg3 {[%clk 0:02:59]}  b5 {[%clk 0:02:28]} 18. e3 {[%clk 0:02:44]}  Nb6 {[%clk 0:02:27]} 19. Ne2 {[%clk 0:02:34]}  h6 {[%clk 0:02:07]} 20. Nf4 {[%clk 0:02:29]}  Bh7 {[%clk 0:02:07]} 21. Nd3 {[%clk 0:02:29]}  Nc4 {[%clk 0:02:07]} 22. Ne5 {[%clk 0:02:09]}  Rfc8 {[%clk 0:01:58]} 23. Rec1 {[%clk 0:02:01]}  Bd6 {[%clk 0:01:43]} 24. Qc3 {[%clk 0:01:49]}  b4 {[%clk 0:01:32]} 25. Qb3 {[%clk 0:01:43]}  Bxe5 {[%clk 0:01:30]} 26. Bxe5 {[%clk 0:01:43]}  c5 {[%clk 0:01:28]} 27. Bf1 {[%clk 0:01:41]}  Qb7 {[%clk 0:01:15]} 28. Bg3 {[%clk 0:00:22]}  Nd2 {[%clk 0:00:56]} 29. Qd1 {[%clk 0:00:22]}  Nxf1 {[%clk 0:00:56]} 30. Qxf1 {[%clk 0:00:23]}  c4 {[%clk 0:00:57]} 31. Bd6 {[%clk 0:00:17]}  c3 {[%clk 0:00:49]} 32. bxc3 {[%clk 0:00:17]}  bxc3 {[%clk 0:00:50]} 33. Bc5 {[%clk 0:00:15]}  c2 {[%clk 0:00:50]} 34. a4 {[%clk 0:00:15]}  Ra5 {[%clk 0:00:47]} 35. Qe1 {[%clk 0:00:13]}  Rca8 {[%clk 0:00:46]} 36. Qc3 {[%clk 0:00:04]}  Rxa4 {[%clk 0:00:45]} 37. Rxa4 {[%clk 0:00:04]}  Rxa4 {[%clk 0:00:45]} 38. Ba3 {[%clk 0:00:03]}  Rc4 {[%clk 0:00:26]} 39. Qa5 {[%clk 0:00:02]}  Be4 {[%clk 0:00:24]} 40. Qd8+ {[%clk 0:00:02]}  Kh7 {[%clk 0:00:24]} 41. Bf8 {[%clk 0:00:03]}  Qb1 {[%clk 0:00:19]} 42. Ba3 {[%clk 0:00:03]}  Qb3 {[%clk 0:00:18]} 43. Qf8 {[%clk 0:00:03]}  Ra4 {[%clk 0:00:12]} 44. Bd6 {[%clk 0:00:02]}  Qb2 {[%clk 0:00:11]} 45. Be5 {[%clk 0:00:03]}  Qxc1+ {[%clk 0:00:11]} 46. Kh2 {[%clk 0:00:03]}  Qh1+ {[%clk 0:00:12]} 47. Kg3 {[%clk 0:00:04]}  Qf3+ {[%clk 0:00:12]} 48. Kh4 {[%clk 0:00:04]}  g5+ {[%clk 0:00:12]} 49. Kh5 {[%clk 0:00:03]}  Qxh3# {[%clk 0:00:12]} 0-1


[Site "https://www.chess.com"]

[Event "Titled Tuesday Blitz September 13 Late 2022"]
[White "Mirzoev, Azer"]
[Black "Besedes, Danilo"]
[WhiteFideId "13400304"]
[BlackFideId "946796"]
[WhiteElo "2525"]
[BlackElo "2352"]
[Result "1-0"]
[Round "10"]
[TimeControl "180+1"]
[Date "2022.09.13"]
[WhiteClock "0:00:02"]
[BlackClock "0:00:46"]

1. c4 {[%clk 0:03:00]}  Nf6 {[%clk 0:03:00]} 2. Nc3 {[%clk 0:03:00]}  e6 {[%clk 0:03:00]} 3. d4 {[%clk 0:02:57]}  Bb4 {[%clk 0:03:00]} 4. Qb3 {[%clk 0:02:56]}  c5 {[%clk 0:02:59]} 5. dxc5 {[%clk 0:02:52]}  Bxc5 {[%clk 0:02:50]} 6. Nf3 {[%clk 0:02:52]}  b6 {[%clk 0:02:48]} 7. Bg5 {[%clk 0:02:51]}  Bb7 {[%clk 0:02:46]} 8. e3 {[%clk 0:02:51]}  h6 {[%clk 0:02:44]} 9. Bh4 {[%clk 0:02:50]}  O-O {[%clk 0:02:41]} 10. Be2 {[%clk 0:02:49]}  Nc6 {[%clk 0:02:40]} 11. O-O {[%clk 0:02:46]}  Qc8 {[%clk 0:02:31]} 12. Bxf6 {[%clk 0:02:42]}  gxf6 {[%clk 0:02:30]} 13. Rfd1 {[%clk 0:02:41]}  Ne5 {[%clk 0:02:26]} 14. Nd4 {[%clk 0:02:23]}  Kh8 {[%clk 0:02:20]} 15. Rac1 {[%clk 0:02:11]}  Rg8 {[%clk 0:02:19]} 16. g3 {[%clk 0:02:09]}  f5 {[%clk 0:02:05]} 17. Na4 {[%clk 0:01:58]}  Bf8 {[%clk 0:02:04]} 18. Qc3 {[%clk 0:01:32]}  Bg7 {[%clk 0:02:04]} 19. c5 {[%clk 0:01:32]}  Qd8 {[%clk 0:01:40]} 20. Qb3 {[%clk 0:01:15]}  Bd5 {[%clk 0:01:40]} 21. Qa3 {[%clk 0:01:04]}  bxc5 {[%clk 0:01:38]} 22. Nxc5 {[%clk 0:01:02]}  Bf8 {[%clk 0:01:33]} 23. Nxf5 {[%clk 0:00:36]}  Qf6 {[%clk 0:01:33]} 24. Rxd5 {[%clk 0:00:34]}  exd5 {[%clk 0:01:28]} 25. Nd4 {[%clk 0:00:33]}  Qb6 {[%clk 0:01:16]} 26. Qc3 {[%clk 0:00:21]}  Rc8 {[%clk 0:01:13]} 27. b4 {[%clk 0:00:09]}  d6 {[%clk 0:01:10]} 28. Nf3 {[%clk 0:00:08]}  Bg7 {[%clk 0:01:05]} 29. Nxe5 {[%clk 0:00:06]}  Bxe5 {[%clk 0:01:04]} 30. Qb3 {[%clk 0:00:04]}  dxc5 {[%clk 0:01:03]} 31. Qxd5 {[%clk 0:00:04]}  Qd6 {[%clk 0:00:55]} 32. Qe4 {[%clk 0:00:03]}  cxb4 {[%clk 0:00:51]} 33. Rd1 {[%clk 0:00:02]}  Qe7 {[%clk 0:00:50]} 34. Rd5 {[%clk 0:00:02]}  Bf6 {[%clk 0:00:47]} 35. Qf5 {[%clk 0:00:02]}  Bg7 {[%clk 0:00:46]} 36. Bd3 {[%clk 0:00:02]} 1-0


[Site "https://www.chess.com"]

[Event "Titled Tuesday Blitz September 13 Late 2022"]
[White "Nasuta, Grzegorz"]
[Black "Aldokhin, Ivan"]
[WhiteFideId "1141686"]
[BlackFideId "24115720"]
[WhiteElo "2354"]
[BlackElo "2243"]
[Result "0-1"]
[Round "10"]
[TimeControl "180+1"]
[Date "2022.09.13"]
[WhiteClock "0:00:40"]
[BlackClock "0:00:08"]

1. e4 {[%clk 0:03:00]}  c5 {[%clk 0:03:00]} 2. Nf3 {[%clk 0:03:01]}  e6 {[%clk 0:03:00]} 3. d4 {[%clk 0:03:01]}  cxd4 {[%clk 0:03:01]} 4. Nxd4 {[%clk 0:03:01]}  a6 {[%clk 0:03:01]} 5. a3 {[%clk 0:03:00]}  Nf6 {[%clk 0:03:01]} 6. Nc3 {[%clk 0:02:58]}  Qc7 {[%clk 0:03:01]} 7. Be3 {[%clk 0:02:51]}  d6 {[%clk 0:03:01]} 8. f4 {[%clk 0:02:48]}  b5 {[%clk 0:02:58]} 9. g4 {[%clk 0:02:42]}  Bb7 {[%clk 0:02:23]} 10. Bd3 {[%clk 0:02:42]}  Nc6 {[%clk 0:02:01]} 11. Nxc6 {[%clk 0:02:40]}  Bxc6 {[%clk 0:02:00]} 12. g5 {[%clk 0:02:39]}  Nd7 {[%clk 0:02:00]} 13. Qg4 {[%clk 0:02:39]}  Be7 {[%clk 0:01:38]} 14. h4 {[%clk 0:02:37]}  Qb7 {[%clk 0:01:02]} 15. Bd4 {[%clk 0:01:28]}  b4 {[%clk 0:00:44]} 16. Ne2 {[%clk 0:01:03]}  Bxe4 {[%clk 0:00:36]} 17. Bxe4 {[%clk 0:01:03]}  Qxe4 {[%clk 0:00:35]} 18. O-O-O {[%clk 0:01:04]}  Rc8 {[%clk 0:00:29]} 19. c3 {[%clk 0:01:01]}  b3 {[%clk 0:00:27]} 20. Kd2 {[%clk 0:01:02]}  e5 {[%clk 0:00:18]} 21. Be3 {[%clk 0:00:55]}  Rd8 {[%clk 0:00:07]} 22. Ng3 {[%clk 0:00:50]}  Qc2+ {[%clk 0:00:06]} 23. Ke1 {[%clk 0:00:51]}  exf4 {[%clk 0:00:06]} 24. Bxf4 {[%clk 0:00:44]}  O-O {[%clk 0:00:05]} 25. Nf5 {[%clk 0:00:44]}  Rfe8 {[%clk 0:00:04]} 26. Rh2 {[%clk 0:00:31]}  Bf8+ {[%clk 0:00:04]} 27. Kf1 {[%clk 0:00:31]}  Qe4 {[%clk 0:00:03]} 28. Ng3 {[%clk 0:00:30]}  Qc4+ {[%clk 0:00:03]} 29. Kg1 {[%clk 0:00:29]}  Ne5 {[%clk 0:00:04]} 30. Bxe5 {[%clk 0:00:27]}  Qxg4 {[%clk 0:00:04]} 31. Rd4 {[%clk 0:00:24]}  Qf3 {[%clk 0:00:03]} 32. Rf2 {[%clk 0:00:23]}  Qxf2+ {[%clk 0:00:03]} 33. Kxf2 {[%clk 0:00:23]}  dxe5 {[%clk 0:00:04]} 34. Ra4 {[%clk 0:00:23]}  Bc5+ {[%clk 0:00:04]} 35. Kf3 {[%clk 0:00:24]}  Rd3+ {[%clk 0:00:04]} 36. Ke4 {[%clk 0:00:25]}  Rxg3 {[%clk 0:00:04]} 37. Kd5 {[%clk 0:00:25]}  Bg1 {[%clk 0:00:04]} 38. Kc6 {[%clk 0:00:26]}  Rf8 {[%clk 0:00:04]} 39. Kb7 {[%clk 0:00:27]}  Rg2 {[%clk 0:00:05]} 40. Rxa6 {[%clk 0:00:28]}  Rxb2 {[%clk 0:00:05]} 41. Kc7 {[%clk 0:00:29]}  Rb1 {[%clk 0:00:06]} 42. Kc6 {[%clk 0:00:30]}  b2 {[%clk 0:00:06]} 43. Rb6 {[%clk 0:00:30]}  Be3 {[%clk 0:00:06]} 44. Rxb2 {[%clk 0:00:31]}  Rxb2 {[%clk 0:00:06]} 45. Kd5 {[%clk 0:00:32]}  Ra2 {[%clk 0:00:06]} 46. Ke4 {[%clk 0:00:33]}  Bd2 {[%clk 0:00:06]} 47. Kd3 {[%clk 0:00:33]}  Bxc3 {[%clk 0:00:06]} 48. Kc4 {[%clk 0:00:34]}  Rxa3 {[%clk 0:00:07]} 49. Kb5 {[%clk 0:00:34]}  Ra5+ {[%clk 0:00:07]} 50. Kc6 {[%clk 0:00:35]}  Rc8+ {[%clk 0:00:07]} 51. Kd7 {[%clk 0:00:35]}  Rac5 {[%clk 0:00:07]} 52. g6 {[%clk 0:00:36]}  hxg6 {[%clk 0:00:07]} 53. h5 {[%clk 0:00:36]}  gxh5 {[%clk 0:00:07]} 54. Kd6 {[%clk 0:00:37]}  h4 {[%clk 0:00:07]} 55. Kd7 {[%clk 0:00:37]}  h3 {[%clk 0:00:08]} 56. Kd6 {[%clk 0:00:38]}  h2 {[%clk 0:00:08]} 57. Kd7 {[%clk 0:00:39]}  h1=Q {[%clk 0:00:08]} 58. Kd6 {[%clk 0:00:40]}  Qc6+ {[%clk 0:00:08]} 0-1


[Site "https://www.chess.com"]